Nominal Code Description,Nominal Code,Transaction Detail,Date Paid,Net,Payee Name
Allotments,4301,"Skips Cotton Lanex2, Nowton Roadx2, Sicklesmere Roadx1",26/04/2016,"1,225.00",Culford Waste Ltd
Allotments,4301,Cotton Lane site E plot rent 1.9.14-31.8.15,14/05/2016,851.00,St Edmundsbury Borough Council
Allotments,4301,Cotton Lane site E plots rent 1.9.15-31.8.16,14/09/2016,709.17,St Edmundsbury Borough Council
Allotments,4301,Routine grass cutting/Spray herbicide Sicklesmere Road/Hedge cutting Nowton Road & Sicklesmere Road/Remove fallen tree Nowton Road/Install entrance gate at Vinefields/Remove damaged bins x 2,14/12/2016,806.35,St Edmundsbury Borough Council
Allotments,4301,"Skips Cotton Lanex2, Nowton Roadx2, Sicklesmere Roadx1",29/03/2017,"1,250.00",Culford Waste Ltd
Annual Report to Residents,4110,Flyer in Council tax bills,26/05/2016,650.00,Breckland Council
Audit -External,4113,External audit y/end 31.3.16,20/09/2016,600.00,BDO LLP
Bury in Bloom Basic,4203,Lark Linnet bollard trail leaflet,31/05/2016,"1,060.00",St Edmundsbury Borough Council
Bury in Bloom Basic,4203,Baskets summer/winter 16/17,31/05/2016,"4,920.00",Bury In Bloom
Election Expenses,4128,St Olaves by-election 5/5/16,19/12/2016,"3,558.98",ARO Parliamentary Election
Grant Funding - general,4353,St Andrews Street improvement project,27/04/2016,"10,000.00",Bury In Bloom
Grant Funding - general,4353,Purchase 150 chairs,26/05/2016,"2,520.00",Southgate Community Partnership
Grant Funding - general,4353,Stage payment Mount Road sculpture,30/06/2016,"6,500.00",Designs on Metal
Grant Funding - general,4353,Final payment Mount Road sculpture,20/09/2016,"1,190.00",Designs On Metal
Grant Funding - general,4353,Guildhall project grant,20/09/2016,"10,000.00",Treasurer BSE Heritage Trust
Grant Funding - general,4353,Drama production,19/10/2016,"1,000.00",Bring Out Your Dead Production
Grant Funding - general,4353,St Eds Day dinner contribution,25/10/2016,"1,500.00",BSE BIDCO Ltd
Grant Funding - general,4353,Tourism videos contribution,25/10/2016,"1,500.00",BSE BIDCO Ltd
Grant Funding - general,4353,St Eds Day dinner contribution,25/10/2016,"1,800.00",BSE BIDCO Ltd
Grant Funding - general,4353,Roof repairs and fence,31/10/2016,"7,171.00",6th Bury Scout Group
Grant Funding - general,4353,Chinese New Year Celebration,19/12/2016,"1,500.00",My WiSH Charity
Grant Funding - general,4353,Mount Rd sculpture - lighting,31/01/2017,"2,549.00",Bury in Bloom
Grant Funding - sports,4354,Dinghy & road trailer,05/04/2016,"2,500.00",Bury St Edmunds Sea Cadets
Grant Funding - sports,4354,Perimeter fence,26/05/2016,"3,729.22",Bury Town Football Club
Grant Funding - sports,4354,Street Velodrome project,23/07/2016,"2,000.00",St Edmundsbury Borough Council
Grant Funding - sports,4354,Nowton Park summer activities,31/08/2016,"10,000.00",St Edmundsbury Borough Council
Grant Funding - well being,4355,Running costs equipment + drugs,25/08/2016,500.00,Suffolk Accident Rescue Servic
Grant Funding - well being,4355,Assoc Arts programme/Childrens festival,31/10/2016,"26,000.00",BSE Theatre Royal Mgmt Ltd
Grant Funding - well being,4355,Equipment & training for volunteers,30/01/2017,"8,000.00",Suffolk Accident Rescue Servic
Grant Funding - well being,4355,Art group materials,31/01/2017,"1,000.00",BSE Ecumenical Centre Trust
Grant Funding - well being,4355,Mattress for Sylvan Ward,29/03/2017,"2,700.00",St Nicholas Hospice (Suffolk)
Grant Funding - well being,4355,Childrens workshops/training,29/03/2017,"1,000.00",Spinning Wheel Ltd
Grant Funding - well being,4355,Perform the play 'Freefall' in BSE schools,29/03/2017,"1,350.00",Unit Twenty Three Ltd
Grant Funding - well being,4355,Green gym Moreton Hall,29/03/2017,"24,000.00",St Edmundsbury Borough Council
Insurance,4133,Insurance 01.09.16,31/08/2016,"2,332.01",Community First Trading
Litter Bins,4386,Bin empty 1.4-30.9 (1st inst),14/10/2016,"1,001.00",St Edmundsbury Borough Council
Litter Bins,4386,Bin emptying 1.1.16-31.3.16,14/11/2016,982.80,St Edmundsbury Borough Council
Litter Bins,4386,Bin emptying 1/4-30/9 2nd inst,16/01/2017,"1,001.00",St Edmundsbury Borough Council
Litter Bins,4386,Bin emptying 1/10-31/12/16,14/02/2017,"1,019.20",St Edmundsbury Borough Council
Litter Bins,4386,Bin emptying JAN-MAR17,14/03/2017,"1,019.20",St Edmundsbury Borough Council
Locality budgets,4351,Shows in schools,27/04/2016,"2,250.00",West Suffolk College
Locality budgets,4351,Childrens festival,27/04/2016,600.00,BSE Theatre Management Ltd
Locality budgets,4351,Install kitchen,27/04/2016,500.00,Hardwick Primary School
Locality budgets,4351,Concrete base,17/06/2016,500.00,Milkmaid Folk Arts Centre CIC
Locality budgets,4351,Water feature Cullum Road,27/07/2016,920.00,Orbit Group Ltd
Locality budgets,4351,Women on Wheels event,27/07/2016,"1,045.00",Abbeycroft Leisure
Locality budgets,4351,Luke Southgate Memorial Garden,29/07/2016,500.00,Bury In Bloom
Locality budgets,4351,Garden/new play equipment,30/08/2016,833.33,New Moreton Hall Pre School
Locality budgets,4351,St Johns St Xmas Fayre project,29/11/2016,"1,250.00",West Suffolk College
Locality budgets,4351,Tollgate lane bus shelter ground works,29/11/2016,"1,500.00",Suffolk County Council
Locality budgets,4351,New sportswear and equipment,19/12/2016,700.00,Howards Football Club
Locality budgets,4351,Graffiti removal WSC wall,21/12/2016,"1,995.00",Bury In Bloom
Locality budgets,4351,2 cast iron waste bins in Churchgate Street,20/01/2017,"1,860.00",Churchgate Area Association
Locality budgets,4351,Shed for toys/resources,31/01/2017,900.00,Hardwick Primary School
Locality budgets,4351,Residential activity trip,31/01/2017,500.00,Southgate Church
Locality budgets,4351,Refurbishment Bedell Close play area,22/02/2017,"5,000.00",Horringer Court Residents Asso
Locality budgets,4351,Footpath Oakes Road to woods,22/02/2017,"1,000.00",H.E.A.R.T.
Locality budgets,4351,Numatic floor cleaning machine,22/02/2017,618.00,Southgate Community Partnershi
Locality budgets,4351,Fence + bin Tollgate recreation ground,21/03/2017,868.80,H.E.A.R.T.
Locality budgets,4351,Women on Wheels 2017,29/03/2017,900.00,Abbeycroft Leisure
Locality budgets,4351,Walking football,29/03/2017,500.00,Abbeycroft Leisure
Locality budgets,4351,Mount Road roundabout sculpture lighting,29/03/2017,"4,260.00",Bury In Bloom
Locality budgets,4351,To continue work of MWGBSE,29/03/2017,"2,750.00",Multicultural Womens Group BSE
Locality budgets,4351,Footpath to wooded area,29/03/2017,"1,995.20",H.E.A.R.T.
Office Rental,4141,Office rent 25.6-28.9,17/06/2016,"2,793.75",E Harris t/as Angel Hill Comme
Office Rental,4141,Office rent 29.9-24.12.16,20/09/2016,"2,793.75",E Harris t/as Angel Hill Comme
Office Rental,4141,Office rent 25/12-24/3/16,19/12/2016,"2,793.75",E Harris t/as Angel Hill Comme
Office Rental,4141,Office rent 25/3 - 24/6,24/03/2017,"2,793.75",E Harris t/as Angel Hill Comme
Office Service Charge,4142,Office service chrge APR-JUN16/JUL-SEP16,29/11/2016,"1,990.94",Vertas Group Ltd
Office Service Charge,4142,Service charge Q3 Oct16-Dec16,21/12/2016,995.47,Vertas Group Ltd
Office Service Charge,4142,Service chrge JAN-MAR17,29/03/2017,995.47,Vertas Group Ltd
Police Community Support Offic,4350,PCSO 1JAN-31MAR2017,27/02/2017,"7,849.50",PCC for Suffolk
Police Community Support Offic,4350,PCSO 1 JAN-31MAR2017,27/03/2017,"7,849.50",PCC for Suffolk
Recruitment Advertising,4006,Clerk job advert Bury Free Press/Diss Express/Newmarket Journal,29/03/2017,"1,049.00",Iliffe Media Publishing Ltd
Recruitment Advertising,4006,Clerk job advert - East Anglian Daily Times/Evening Star/Bury St Edmunds Mercury,29/03/2017,"1,410.00",Archant Regional Ltd
Speed Indicator Device,4282,Mini-SID +data collection unit,31/01/2017,"2,875.00",Westcotec Ltd
Subscriptions,4154,Subscription 2016/17,31/05/2016,"3,004.57",Suffolk Assn. Local Councils
Tourism,4236,Destination Management Organisation funding 2016/17,29/03/2017,"20,000.00",BSE BIDCO Ltd
War Memorials,4395,War memorial cleaning,29/11/2016,"1,200.00",Saxon Monumental Craft
